Workbook

Sheet PFS
H1: Ministério da Integração Nacional - MI
H2: Companhia de Desenvolvimento dos Vales do São Francisco e do Parnaíba
A5: PROPOSTA FINANCEIRA DE SERVIÇOS | N5: CODIGO:
N6: PFS
A7: NOME DA CONSULTORA:
A9: PERÍMETRO(S): | G9: OBJETO: | O9: EDITAL:
A11: SERVIÇOS PAGOS A PREÇO GLOBAL
A12: CUSTOS DIRETOS | N12: =N14+N17+N24 -> 7686810.925
A13: MÃO-DE-OBRA
A14: A - TOTAL DE SALÁRIO DA EQUIPE | N14: =SUM(N15:O16) -> 2764809.12
A15: A1 - TOTAL SALÁRIOS DA EQUIPE COM VÍNCULO (PFS-I) | N15: ='PFS_I Equipe (2)'!E24 -> 2764809.12
A16: A2 - TOTAL SALÁRIO DO AUTÔNOMO (PFS-I) - Consultoria | N16: 0
A17: B - TOTAL DE ENCARGOS SOCIAIS | N17: ='PFS_VIII Det_ Enc_ Soc_'!G38 -> 2135815.045
A18: B1 - 77,25% INCIDENTE SOBRE O ITEM A1
A19: B2 - 20,00% INCIDENTE SOBRE O ITEM A2
A20: OUTRAS DESPESAS
A21: C - DESPESAS COM VIAGENS (PFS-II) | N21: ='PFS_II Desp Viagens'!L25 -> 1365120
A22: D - SERVIÇOS GRÁFICOS (PFS-III) | N22: ='PFS_III Ser Graf'!G42 -> 1200
A23: E - DESPESAS GERAIS (PFS-IV) | N23: ='PFS_IV Desp Gerais'!I41 -> 1419866.76
A24: TOTAL DE OUTRAS DESPESAS | N24: =SUM(N21:O23) -> 2786186.76
A25: CUSTOS INDIRETOS | N25: =SUM(N26:O28) -> 3060671.97
A26: F - CUSTO DE ADMINISTRAÇÃO - (25,00% DO ITEM A) (PFS-VI) | N26: ='PFS_VI_ Det_ Custos Adm_'!G38 -> 691202.28
A27: G - REMUNERAÇÃO DA EMPRESA (LUCRO) - (10,00% DOS ITENS A+B+C+D+E+F) | N27: =ROUND(((N14+N17+N21+N22+N23+N26)*0.1),2) -> 837801.32
A28: H - DESPESAS FISCAIS - (16,62% = DF' DOS ITENS A+B+C+D+E+F+G) (PFS-VII) | N28: =ROUND(((N14+N17+N21+N22+N23+N26+N27)*0.1662),2) -> 1531668.37
A29: TOTAL DA PROPOSTA | N29: =ROUND((N12+N25),2) -> 10747482.9
A30: NOME DO INFORMANTE: | J30: QUALIFICAÇÃO:
A32: ASSINATURA: | N32: DATA:
A34: OBSERVAÇÃO:
A35: ESTE ORÇAMENTO FOI CALCULADO COM OS SEGUINTES % MÁXIMOS DE ENCARGOS SOCIAIS E CUSTOS INDIRETOS:
A36: 1. ENCARGOS SOCIAIS DE AUTÔNOMOS = 20% SOBRE O SALÁRIO MENSAL
A37: 2. ENCARGOS SOCIAIS DA EQUIPE COM VÍNCULO = 77,25% SOBRE O SALÁRIO MENSAL
A38: 3. CUSTO DE ADMINISTRAÇÃO = 25,00% SOBRE O TOTAL DE SALÁRIOS DA EQUIPE (A1 + A2)
A39: 4. REMUNERAÇÃO DA EMPRESA (LUCRO) = 10,00% SOBRE OS ITENS DE CUSTOS DIRETOS + CUSTO DE ADMINISTRAÇÃO
A40: 5. DF = A SOMA DOS TRIBUTOS (EX: ISS 5,00 + PIS 1,65 + COFINS 7,60 = 14,25%)
A41: 6. DF' = UTILIZADO NA LINHA "H" SERÁ CALCULADO APLICANDO A SEGUINTE FÓRMULA:
A42: DF' = { [ 1 / ( 1 - DF) ] - 1 } x 100
A43: DF' = { [ 1 / ( 1 - 0,1425 ) ] - 1 } x 100
A44: DF' = 0,1662 ou 16,62%
A45: 7. NÃO foram incluídos os tributos IRPJ e CSLL, em cumprimento ao Acórdão nº 325/2007 – TCU – Plenário.

Sheet PFS_I Equipe (2)
D1: Ministério da Integração Nacional - MI
D2: Companhia de Desenvolvimento dos Vales do São Francisco e do Parnaíba
A5: SALÁRIOS E ENCARGOS DA EQUIPE | I5: CODIGO:
I6: PFS-I
A7: NOME DA CONSULTORA:
A9: PERÍMETRO(S): | D9: OBJETO: | I9: EDITAL: | K9: =8*12 -> 96
A11: CATEGORIA FUNCIONAL | B11: SÍMBOLO | C11: TOTAL DE HOMENS X MÊS | D11: SALÁRIO MENSAL (R$) | E11: TOTAL CUSTO SALÁRIOS DE B1 | F11: TOTAL CUSTO SALÁRIOS DE B2 | G11: TOTAL CUSTO ENC. SOCIAIS DE B1 | H11: TOTAL CUSTO ENC. SOCIAIS DE B2 | I11: TAXA DE ENCARGOS SOCIAIS %
A12: ENGENHEIRO COORDENADOR | B12: P0 | C12: 12 | D12: 7244.45 | E12: =D12*C12 -> 86933.4 | G12: =E12*I12 -> 67156.0515 | I12: 0.7725 | J12: =C12/12 -> 1
A13: ENGENHEIRO DE PLANEJAMENTO | B13: P3 | C13: 12 | D13: 6154 | E13: =D13*C13 -> 73848 | G13: =E13*I13 -> 57047.58 | I13: 0.7725 | J13: =C13/12 -> 1
A14: ENGENHEIRO CIVIL / AGRONOMO | B14: P3 | C14: 72 | D14: 6154 | E14: =C14*D14 -> 443088 | F14: - | G14: =E14*I14 -> 342285.48 | H14: - | I14: 0.7725 | J14: 6
A15: GEÓLOGO | B15: P3 | C15: 24 | D15: 6154 | E15: =C15*D15 -> 147696 | F15: - | G15: =E15*I15 -> 114095.16 | H15: - | I15: 0.7725 | J15: 2
A16: PROFISSIONAL DE AÇÃO SOCIAL NÍVEL SUPERIOR | B16: NS | C16: 144 | D16: 3887.52 | E16: 559802.88 | F16: - | G16: 432447.7248 | H16: - | I16: =I14 -> 0.7725 | J16: 12
A17: TECNICO DE CAMPO / AGRÍCOLA | B17: T1 | C17: 432 | D17: 2852.96 | E17: 1232478.72 | F17: - | G17: 952089.8112 | H17: - | I17: =I16 -> 0.7725 | J17: =C17/12 -> 36
A18: ADMINISTRATIVO | B18: A2 | C18: 24 | D18: 1770.74 | E18: 42497.76 | F18: - | G18: 32829.5196 | H18: - | I18: =I17 -> 0.7725 | J18: 2
A19: TOPÓGRAFO | B19: T0 | C19: 24 | D19: 4245.12 | E19: 101882.88 | G19: 78704.5248 | I19: =I18 -> 0.7725 | J19: 2
A20: AUXILIAR DE TOPÓGRAFO | B20: T3 | C20: 48 | D20: 1052.48 | E20: 50519.04 | G20: 39025.9584 | I20: =I19 -> 0.7725 | J20: 4
A21: CADISTA | B21: T2 | C21: 12 | D21: 2171.87 | E21: 26062.44 | G21: 20133.23 | I21: 0.7725 | J21: 1
A24: TOTAIS | E24: =SUM(E12:E23) -> 2764809.12 | F24: 0 | G24: =SUM(G12:G23) -> 2135815.04 | H24: 0
A25: NOME DO INFORMANTE: | G25: QUALIFICAÇÃO:
A27: ASSINATURA: | H27: DATA:
A29: LEGENDA:
A30: B1 - SALÁRIOS DA EQUIPE EM DIAS ÚTEIS
A31: B2- SALÁRIO DO PESSOAL AUTÔNOMO (CONSULTORES)
A32: OBSERVAÇÃO:
A33: DETALHAR OS ENCARGOS SOCIAIS NO FOR PFS-VIII

Sheet PFS_II Desp Viagens
E2: Ministério da Integração Nacional - MI | O2: VALOR DIARIA | P2: 60
E3: Companhia de Desenvolvimento dos Vales do São Francisco e do Parnaíba | O3: VALOR REF | P3: 30
A6: DESPESAS COM VIAGENS | M6: CODIGO:
M7: PFS-II
A8: NOME DA CONSULTORA:
A10: PERÍMETRO(S): | D10: OBJETO: | M10: EDITAL:
A12: EQUIPE | C12: DIÁRIAS - PERNOITE | I12: ALIMENTAÇÃO
C13: NÍVEL SUPERIOR | F13: NÍVEL TÉC/AUX/APOIO | I13: NÍVEL SUPERIOR | L13: NÍVEL TÉC/AUX/APOIO
C14: QUANT. | D14: CUSTO (R$) | E14: TOTAL (R$) | F14: QUANT. | G14: CUSTO (R$) | H14: TOTAL (R$) | I14: QUANT. | J14: CUSTO (R$) | K14: TOTAL (R$) | L14: QUANT. | M14: CUSTO (R$) | N14: TOTAL (R$)
A15: ='PFS_I Equipe (2)'!A12 -> ENGENHEIRO COORDENADOR | C15: =20*'PFS_I Equipe (2)'!C12 -> 240 | D15: =$P$2 -> 60 | E15: =C15*D15 -> 14400 | I15: 240 | J15: =$P$3 -> 30 | K15: =I15*J15 -> 7200
A16: ='PFS_I Equipe (2)'!A13 -> ENGENHEIRO DE PLANEJAMENTO | C16: =4*'PFS_I Equipe (2)'!C13 -> 48 | D16: =$P$2 -> 60 | E16: =C16*D16 -> 2880 | I16: =C16 -> 48 | J16: =$P$3 -> 30 | K16: =I16*J16 -> 1440
A17: ='PFS_I Equipe (2)'!A14 -> ENGENHEIRO CIVIL / AGRONOMO | C17: =20*'PFS_I Equipe (2)'!C14 -> 1440 | D17: =$P$2 -> 60 | E17: =C17*D17 -> 86400 | I17: =C17 -> 1440 | J17: =$P$3 -> 30 | K17: =I17*J17 -> 43200
A18: ='PFS_I Equipe (2)'!A15 -> GEÓLOGO | C18: =20*'PFS_I Equipe (2)'!C15 -> 480 | D18: =$P$2 -> 60 | E18: =C18*D18 -> 28800 | I18: =C18 -> 480 | J18: =$P$3 -> 30 | K18: =I18*J18 -> 14400
A19: ='PFS_I Equipe (2)'!A16 -> PROFISSIONAL DE AÇÃO SOCIAL NÍVEL SUPERIOR | C19: =20*'PFS_I Equipe (2)'!C16 -> 2880 | D19: =$P$2 -> 60 | E19: =C19*D19 -> 172800 | I19: =C19 -> 2880 | J19: =$P$3 -> 30 | K19: =I19*J19 -> 86400
A20: ='PFS_I Equipe (2)'!A17 -> TECNICO DE CAMPO / AGRÍCOLA | F20: =20*'PFS_I Equipe (2)'!C17 -> 8640 | G20: 60 | H20: =F20*G20 -> 518400 | L20: =F20 -> 8640 | M20: 30 | N20: =L20*M20 -> 259200
A21: ='PFS_I Equipe (2)'!A19 -> TOPÓGRAFO | F21: =20*'PFS_I Equipe (2)'!C19 -> 480 | G21: 60 | H21: =F21*G21 -> 28800 | L21: =F21 -> 480 | M21: 30 | N21: =L21*M21 -> 14400
A22: ='PFS_I Equipe (2)'!A20 -> AUXILIAR DE TOPÓGRAFO | F22: =20*'PFS_I Equipe (2)'!C20 -> 960 | G22: 60 | H22: =F22*G22 -> 57600 | L22: =F22 -> 960 | M22: 30 | N22: =L22*M22 -> 28800
C23: =SUM(C15:C22) -> 5088 | F23: =SUM(F15:F22) -> 10080 | I23: =SUM(I15:I22) -> 5088 | L23: =SUM(L15:L22) -> 10080
A24: TOTAIS COM PASSAGENS/DIÁRIAS | C24: =SUM(E15:E23) -> 305280 | F24: =SUM(H15:H23) -> 604800 | I24: =SUM(K15:K23) -> 152640 | L24: =SUM(N15:N23) -> 302400
A25: TOTAL DE DESPESAS COM VIAGENS | L25: =SUM(C24:N24) -> 1365120
A27: NOME DO INFORMANTE: | G27: QUALIFICAÇÃO:
A28: ASSINATURA: | M28: DATA:
A29: OBSERVAÇÃO:
A30: 1 - TRANSFERIR O TOTAL DAS DESPESAS COM VIAGENS PARA A LINHA "C" DO FORMULÁRIO PFS)

Sheet PFS_III Ser Graf
C1: Ministério da Integração Nacional - MI
C2: Companhia de Desenvolvimento dos Vales do São Francisco e do Parnaíba
A4: SERVIÇOS GRÁFICOS | G4: CODIGO:
G5: PFS-III
A6: NOME DA CONSULTORA:
A8: PERÍMETRO(S): | C8: OBJETO: | G8: EDITAL:
A10: DISCRIMINAÇÃO | D10: EXEMPLARES/ | E10: Nº DE | F10: CUSTOS (R$)
D11: ITENS | E11: VIAS | F11: UNITÁRIO | G11: TOTAL
A12: Relatórios mensais | D12: 12 | E12: 2 | F12: 50 | G12: =D12*E12*F12 -> 1200
A40: SUBTOTAL | G40: =SUM(G12:G39) -> 1200
A42: TOTAL DE SERVIÇOS GRÁFICOS | G42: =SUM(G40:G41) -> 1200
A43: NOME DO INFORMANTE: | D43: QUALIFICAÇÃO:
A45: ASSINTATURA: | F45: DATA:
A47: OBSERVAÇÃO:
A48: 1 - CORREPONDEM AOS SERVIÇOS COM IMPRESSÃO DOS RELATÓRIOS.
A49: 2 - RESERVA DE 10% CALCULADO SOBRE O SUBTOTAL PARA IMPRESSÃO DE RELATÓRIOS ESPECÍFICOS EXCEPCIONALMENTE
A50: SOLICITADO PELA CODEVASF

Sheet PFS_IV Desp Gerais
D1: Ministério da Integração Nacional - MI
D2: Companhia de Desenvolvimento dos Vales do São Francisco e do Parnaíba
A4: DESPESAS GERAIS | I4: CODIGO:
I5: PFS-IV
A6: NOME DA CONSULTORA:
A8: PERÍMETRO(S): | D8: OBJETO: | I8: EDITAL:
A10: ITEM | B10: DISCRIMINAÇÃO | F10: UNID. | G10: QUANT. | H10: CUSTOS (R$)
H11: UNITÁRIO | I11: TOTAL
A12: 1 | B12: VEÍCULOS
A13: 1.1 | B13: Locação - Veículo tipo caminhoneta diesel, tração 4 x 4, cabine dupla, direção hidráulica, acionamento de vidros elétrico, sistema de trava automático nas quatro portas, ar condicionado, seminovo em bom estado de conservação, com no máximo um 02 anos de uso, cor branca, incluindo despesas com combustível, manutenção, licenciamento, seguros e impostos. | F13: Unid. X Mês | G13: 24 | H13: 4573.9 | I13: =G13*H13 -> 109773.6
A14: 1.2 | B14: Fornecimento de veículo leve (1.4 ou superior) com no máximo 02 anos de uso, com ar-condicionado para apoio à fiscalização, incluindo despesas com combustível, óleos, manutenção, licenciamento, seguros, impostos | F14: Unid. X Mês | G14: =37*12 -> 444 | H14: 2303.05 | I14: =G14*H14 -> 1022554.2
A15: 1.3 | B15: VEÍCULO Utilitário tipo Kombi ou similar para equipe de topografia, incluindo despesas com combustível, óleo, manutenção, licenciamento, seguro, impostos, com no máximo um ano de uso. | F15: Unid. X Mês | G15: 24 | H15: 2721.57 | I15: =G15*H15 -> 65317.68
A16: Total das despesas com veículos | I16: =SUM(I13:I15) -> 1197645.48
A17: 2 | B17: EQUIPAMENTOS DE TOPOGRAFIA | D17: INSTALAÇÃO, MANUTENÇÃO E ADMINISTRAÇÃO DO ESCRITÓRIO
A18: 2.1 | B18: Locação - Computador portátil com softwares de topografia e desenho | F18: Unid. x Mês | G18: 24 | H18: 188.83 | I18: =G18*H18 -> 4531.92
A19: 2.2 | B19: Rádio | F19: Unid. x Mês | G19: 24 | H19: 90 | I19: =G19*H19 -> 2160
A20: 2.3 | B20: Locação - Estação Total, leitura angular até 10 seg., acompanha 2,0 prismas e ombrela | F20: Unid. x Mês | G20: 24 | H20: 1650 | I20: =G20*H20 -> 39600
A21: Total das despesas com equipamentos de topografia | I21: =SUM(I18:I20) -> 46291.92
A22: 3 | B22: ALUGUEL E MANUTENÇÃO DO ESCRITÓRIO CENTRAL | D22: INSTALAÇÃO, MANUTENÇÃO E ADMINISTRAÇÃO DO ESCRITÓRIO
A23: 3.1 | B23: Aluguel de escritório com mobiliário e manutenção, água ,luz, limpeza | F23: Unid. x Mês | G23: 12 | H23: 1500 | I23: =G23*H23 -> 18000
A24: 3.2 | B24: Telefone (fixo) | F24: Unid. x Mês | G24: 12 | H24: 300 | I24: 3600
A25: 3.3 | B25: Telefone (celular - equipe de campo) | F25: Unid. x Mês | G25: =59*12 -> 708 | H25: 50 | I25: =G25*H25 -> 35400
A26: 3.4 | B26: Internet | F26: Unid. x Mês | G26: 12 | H26: 100 | I26: 1200
A27: 3.5 | B27: Locação - Computador com periféricos | F27: Unid. x Mês | G27: 24 | H27: 100 | I27: 2400
A28: 3.6 | B28: Locação - Impressora multifuncional | F28: Unid. x Mês | G28: 12 | H28: 122.93 | I28: 1475.16
A29: 3.7 | B29: Plotagens | F29: Unid. x Mês | G29: 12 | H29: 300 | I29: 3600
A30: 3.8 | B30: Material de escritorio | F30: Unid. x Mês | G30: 12 | H30: 260 | I30: 3120
A31: 3.9 | B31: Scanner | F31: Unid. x Mês | G31: 12 | H31: 190 | I31: 2280
A32: 3.10 | B32: Locação - Data show | F32: Unid. x Mês | G32: 60 | H32: 150 | I32: 9000
A33: Total das despesas com o aluguel e manutenção do escritório central | I33: =SUM(I23:I32) -> 80075.16
A34: 4 | B34: MATERIAIS E EQUIPAMENTOS PARA TRABALHO DE CAMPO | D34: INSTALAÇÃO, MANUTENÇÃO E ADMINISTRAÇÃO DO ESCRITÓRIO
A35: 4.1 | B35: Material de trabalho / serviços gráficos | F35: Unid. x Mês | G35: 648 | H35: 30 | I35: =G35*H35 -> 19440
A36: 4.2 | B36: Locação - Notebook conforme especificação | F36: Unid. x Mês | G36: =23*12 -> 276 | H36: 122.95 | I36: =G36*H36 -> 33934.2
A37: 4.3 | B37: Locação - Maquina fotográfica digital | F37: Unid. x Mês | G37: =59*12 -> 708 | H37: 30 | I37: =G37*H37 -> 21240
A38: 4.4 | B38: Locação - GPS de navegação com cabo e software | F38: Unid. x Mês | G38: =59*12 -> 708 | H38: 30 | I38: =G38*H38 -> 21240
A39: Total das despesas com materiais e equipamentos para trabalho de campo | I39: =SUM(I35:I38) -> 95854.2
B41: TOTAL DE DESPESAS GERAIS | I41: =I16+I21+I33+I39 -> 1419866.76
B42: NOME DO INFORMANTE: | G42: QUALIFICAÇÃO:
B44: ASSINATURA: | H44: DATA:

Sheet PFS_V Cronog Financ
C1: Ministério da Integração Nacional - MI
C2: Companhia de Desenvolvimento dos Vales do São Francisco e do Parnaíba
A4: CRONOGRAMA FINANCEIRO | H4: CODIGO:
H5: PFS-V
A6: NOME DA CONSULTORA:
A8: PERÍMETRO(S): | C8: OBJETO: | H8: EDITAL:
A9: Salitre
A10: Nº | B10: TAREFA | C10: RELATÓRIO/SERVIÇO DE CAMPO | F10: MESES CORRIDOS | G10: VALOR DA PARCELA (R$)
A11: 1 | C11: Relatório mensal 01 | F11: 1 | H11: =PFS!$N$29/12 -> 895623.575
A12: 2 | C12: Relatório mensal 02 | F12: 2 | H12: =H11 -> 895623.575
A13: 3 | C13: Relatório mensal 03 | F13: 3 | H13: =PFS!$N$29/12 -> 895623.575
A14: 4 | C14: Relatório mensal 04 | F14: 4 | H14: =PFS!$N$29/12 -> 895623.575
A15: 5 | C15: Relatório mensal 05 | F15: 5 | H15: =PFS!$N$29/12 -> 895623.575
A16: 6 | C16: Relatório mensal 06 | F16: 6 | H16: =PFS!$N$29/12 -> 895623.575
A17: 7 | C17: Relatório mensal 07 | F17: 7 | H17: =PFS!$N$29/12 -> 895623.575
A18: 8 | C18: Relatório mensal 08 | F18: 8 | H18: =PFS!$N$29/12 -> 895623.575
A19: 9 | C19: Relatório mensal 09 | F19: 9 | H19: =PFS!$N$29/12 -> 895623.575
A20: 10 | C20: Relatório mensal 10 | F20: 10 | H20: =PFS!$N$29/12 -> 895623.575
A21: 11 | C21: Relatório mensal 11 | F21: 11 | H21: =PFS!$N$29/12 -> 895623.575
A22: 12 | C22: Relatório mensal 12 | F22: 12 | H22: =PFS!$N$29/12 -> 895623.575
A36: TOTAL DA FOLHA | H36: =SUM(H11:H35) -> 10747482.9
A37: NOME DO INFORMANTE: | D37: QUALIFICAÇÃO:
A39: ASSINATURA: | F39: DATA:
A41: OBSERVAÇÃO:

Sheet PFS_VI_ Det_ Custos Adm_
C1: Ministério da Integração Nacional - MI
C2: Companhia de Desenvolvimento dos Vales do São Francisco e do Parnaíba
A4: DETALHAMENTO DO CUSTO DE ADMINISTRAÇÃO | G4: CODIGO:
G5: PFS-VI
A6: NOME DA CONSULTORA:
A8: PERÍMETRO(S): | C8: OBJETO: | G8: EDITAL:
A9: Salitre
A10: DISCRIMINAÇÃO | F10: VALORES
F11: % | G11: R$
A12: 1 | B12: Custos da equipe da administração central da empresa consultora ( diretoria, pessoal técnico de apoio e pessoal administrativo não diretamente vinculado à prestação dos serviços) | F12: 0.25 | G12: ='PFS_I Equipe (2)'!E24*0.25 -> 691202.28
B38: TOTAIS DO CUSTO DE ADMINISTRAÇÃO | F38: 0.25 | G38: =SUM(G12:G37) -> 691202.28
A40: NOME DO INFORMANTE: | D40: QUALIFICAÇÃO:
A41: ASSINATURA: | F41: DATA:
A42: OBSERVAÇAO:

Sheet PFS_VII Det_ Desp Fiscais
C1: Ministério da Integração Nacional - MI
C2: Companhia de Desenvolvimento dos Vales do São Francisco e do Parnaíba
A4: DETALHAMENTO DE DESPESAS FISCAIS | H4: CODIGO:
H5: PFS-VII
A6: NOME DA CONSULTORA:
A8: PERÍMETRO(S): | C8: OBJETO: | H8: EDITAL:
A10: DISCRIMINAÇÃO | F10: VALORES
F11: DF % | G11: DF' % | H11: R$
A13: 1 - ISS | F13: 5 | G13: 5.83090379 | H13: =H40*J13 -> 537427.4982 | J13: =(G13/$G$40) -> 0.350877193
A14: 2 - PIS | F14: 1.65 | G14: 1.924198251 | H14: =H40*J14 -> 177351.0744 | J14: =(G14/$G$40) -> 0.1157894737
A15: 3 - COFINS | F15: 7.6 | G15: 8.862973761 | H15: =H40*J15 -> 816889.7973 | J15: =(G15/$G$40) -> 0.5333333333
A40: TOTAIS DE DESPESAS FISCAIS | F40: 14.25 | G40: 16.6180758 | H40: =PFS!N28 -> 1531668.37
A41: NOME DO INFORMANTE: | D41: QUALIFICAÇÃO:
A43: ASSINATURA: | F43: DATA:
A45: Observação:
A46: As despesas fiscais (DF) incidem sobre o total da fatura e não sobre os custos incorridos. Portanto aplicar a seguinte fórmula:
A47: DF' = { [ 1 / ( 1 - DF ) ] - 1 } x 100
A48: ou seja, para o valor máximo de 14,25%, o valor a ser aplicado na composição dos preços será:
A49: DF' = { [ 1 / ( 1 - 0,1425 ) ] - 1 } x 100
A50: DF' =0,1662 ou 16,62%

Sheet PFS_VIII Det_ Enc_ Soc_
C1: Ministério da Integração Nacional - MI
C2: Companhia de Desenvolvimento dos Vales do São Francisco e do Parnaíba
A4: DETALHAMENTO DOS ENCARGOS SOCIAIS | G4: CODIGO:
G5: PFS-VIII
A6: NOME DA CONSULTORA:
A8: PERÍMETRO(S): | C8: OBJETO: | G8: EDITAL:
A10: DISCRIMINAÇÃO | F10: VALORES
F11: % | G11: R$
A12: A | B12: ENCARGOS SOCIAIS BÁSICOS
A13: A2 | B13: INSS | F13: 0.2 | G13: ='PFS_I Equipe (2)'!$E$24*F13 -> 552961.824
A14: A3 | B14: FGTS | F14: 0.08 | G14: ='PFS_I Equipe (2)'!$E$24*F14 -> 221184.7296
A15: A4 | B15: Incra | F15: 0.002 | G15: ='PFS_I Equipe (2)'!$E$24*F15 -> 5529.61824
A16: A5 | B16: Salário Educação | F16: 0.025 | G16: ='PFS_I Equipe (2)'!$E$24*F16 -> 69120.228
A17: A5 | B17: Sebrae | F17: 0.006 | G17: ='PFS_I Equipe (2)'!$E$24*F17 -> 16588.85472
A18: A7 | B18: Seguro contra acidente | F18: 0.03 | G18: ='PFS_I Equipe (2)'!$E$24*F18 -> 82944.2736
A19: A8 | B19: Senai | F19: 0.01 | G19: ='PFS_I Equipe (2)'!$E$24*F19 -> 27648.0912
A20: A9 | B20: Sesi | F20: 0.015 | G20: ='PFS_I Equipe (2)'!$E$24*F20 -> 41472.1368
A21: SUBTOTAL DE "A" | F21: =SUM(F13:F20) -> 0.368 | G21: =SUM(G13:G20) -> 1017449.756
A23: B | B23: ENCARGOS SOCIAIS QUE RECEBEM INCIDÊNCIA DE "A"
A24: B1 | B24: 13º Salário | F24: 0.0822 | G24: ='PFS_I Equipe (2)'!$E$24*F24 -> 227267.3097
A25: SUBTOTAL DE "B" | F25: =SUM(F24:F24) -> 0.0822 | G25: =SUM(G24:G24) -> 227267.3097
A27: C | B27: ENCARGOS SOCIAIS QUE NÃO RECEBEM INCIDÊNCIA DE "A"
A28: C1 | B28: Depósito por despedida injusta | F28: 0.0433 | G28: ='PFS_I Equipe (2)'!$E$24*F28 -> 119716.2349
A29: C2 | B29: Férias | F29: 0.1093 | G29: ='PFS_I Equipe (2)'!$E$24*F29 -> 302193.6368
A30: C3 | B30: Aviso Prévio | F30: 0.102 | G30: ='PFS_I Equipe (2)'!$E$24*F30 -> 282010.5302
A31: SUBTOTAL DE "C" | F31: =SUM(F28:F30) -> 0.2546 | G31: =G28+G29+G30 -> 703920.402
A33: D | B33: REINCIDÊNCIAS
A34: D1 | B34: Reincidência de "A" sobre "B" | F34: 0.0302 | G34: ='PFS_I Equipe (2)'!$E$24*F34 -> 83497.23542
A35: D2 | B35: Reincidência de "A" sobre "c3" | F35: 0.0375 | G35: ='PFS_I Equipe (2)'!$E$24*F35 -> 103680.342
A36: SUBTOTAL DE "D" | F36: =SUM(F34:F35) -> 0.0677 | G36: =G34+G35 -> 187177.5774
A38: TOTAIS DE ENCARGOS SOCIAIS | F38: =F21+F25+F31+F36 -> 0.7725 | G38: =G21+G25+G31+G36 -> 2135815.045
A39: NOME DO INFORMANTE: | D39: QUALIFICAÇÃO:
A40: ASSINATURA: | F40: DATA:
A41: Observação:

Sheet Plan1

Sheet Relatório de Compatibilidade
B1: Relatório de Compatibilidade para Apoio 8ª SR 27.06 corrigida.xls
B2: Executar em 26/9/2013 15:17
B4: Os seguintes recursos desta pasta de trabalho não têm suporte em versões anteriores do Excel. Eles poderão ser perdidos ou prejudicados se você abrir esta pasta de trabalho em uma versão anterior do Excel ou salvá-la em um formato de arquivo anterior.
B6: Perda insignificante de fidelidade | E6: Núm. de ocorrências | F6: Versão
B8: Algumas fórmulas nesta pasta de trabalho estão vinculadas a outras pastas de trabalho que estão fechadas. Quando as fórmulas forem recalculadas em versões anteriores do Excel sem que as pastas de trabalho vinculadas sejam abertas, não será possível retornar caracteres além do limite de 255. | E8: 53 Nomes Definidos | F8: Excel 97-2003
